Cogmind - Beta 14 @@@ ROGUE MODE // 2024.12.07 @ 18:21:49 Player: abnormality Result: Destroyed by D-53 Grenadier with Mini Grenade Launcher Performance ------------- Evolutions (0) 0 Regions Visited (2) 400 Robots Destroyed (8) 40 Value Destroyed (108) 108 Prototype IDs (0) 0 Alien Tech Used (0) 0 Bonus (0) 0 TOTAL SCORE: 548 Bonus ------- None Cogmind --------- Core Integrity 0/250 Matter 300/300 Energy 100/100 System Corruption 0% Temperature Cool (0) Movement Rolling (115) Ox1 Location -10/Mines Parts ------- > --- POWER (1) -------- (None) > --- PROPULSION (2) --- Compact Wheel > --- UTILITY (2) ------ Large Storage Unit > --- WEAPON (2) ------- (None) > --- INVENTORY (15) --- Ion Engine Light Treads Small Storage Unit Visual Processing Unit ECM Suite Peak State ------------ > --- POWER ------------ Light Ion Engine > --- PROPULSION ------- Light Treads Light Treads > --- UTILITY ---------- Small Storage Unit ECM Suite > --- WEAPON ----------- Medium Laser Light Assault Rifle > --- INVENTORY -------- Ion Engine Small Laser [Rating: 7] Favorites ----------- Power Ion Engine Engine Ion Engine Propulsion Light Treads Treads Light Treads Wheel Compact Wheel Utility Large Storage Unit Device Sensor Array Storage Large Storage Unit Weapon Light Assault Rifle Energy Gun Small Laser Ballistic Gun Light Assault Rifle Build | -11 -10 -10 ------- Run | Yrd Mat Min Slots Evolved . | . . . Power . | . . . Propulsion . | . . . Utility . | . . . Weapon . | . . . Parts Attached 18 | 7 7 4 Power 2 | 1 1 . Engine 2 | 1 1 . Core . | . . . Reactor . | . . . Propulsion 7 | 2 2 3 Treads 5 | 2 2 1 Leg . | . . . Wheel 2 | . . 2 Hover . | . . . Flight . | . . . Utility 4 | 1 3 . Device 2 | . 2 . Storage 2 | 1 1 . Processor . | . . . Hackware . | . . . Protection . | . . . Artifact . | . . . Weapon 5 | 3 1 1 Energy Gun 4 | 2 1 1 Energy Cannon . | . . . Ballistic Gun 1 | 1 . . Ballistic Cannon . | . . . Launcher . | . . . Special Weapon . | . . . Impact Weapon . | . . . Slashing Weapon . | . . . Piercing Weapon . | . . . Special Melee Weapon . | . . . Unidentified Prototypes . | . . . Parts Lost 6 | . . 6 Power 1 | . . 1 Propulsion 2 | . . 2 Utility 1 | . . 1 Weapon 2 | . . 2 Highest Loss Streak 5 | . . 5 To Critical Strikes . | . . . Average Slot Usage (%) 93 | . 91 94 Engine 13 | . 12 14 Treads 15 | . 24 6 Wheel 8 | . . 17 Device 12 | . 11 14 Storage 14 | . 14 14 Energy Gun 13 | . 12 14 Ballistic Gun 13 | . 14 13 Peak Build Rating 7 | 6 7 7 Average Rating 6 | 4 6 6 On Entrance 3 | . 6 5 Naked Turns . | . . . Heaviest Build 30 | 11 30 28 Greatest Support 40 | 40 40 40 Greatest Overweight (x) 9 | . 9 1 Average Overweight (x) . | . . . Largest Inventory Capacity 15 | 8 15 15 Average Capacity 13 | 6 13 15 Most Carried 6 | 4 6 6 Average Carried 3 | 2 3 4 Final Capacity 15 | 8 15 15 Final Carried 6 | 2 6 5 Class Distribution -------------------- 100% | Mutant Dominant Class ---------------- Mutant | -10/Materials Mutant | -10/Mines Resources | -11 -10 -10 ----------- Run | Yrd Mat Min Matter Collected 398 | 225 84 89 Remotely . | . . . Salvage Created 294 | . 90 204 Parts 18 | . 8 10 Haulers Intercepted . | . . . Recyclers Shooed 2 | . 1 1 Parts Field Recycled . | . . . Retrieved Matter . | . . . Parts Self-Destructed . | . . . Prevented . | . . . Kills | -11 -10 -10 ------- Run | Yrd Mat Min Combat Hostiles Destroyed 4 | . 1 3 Guns 4 | . 1 3 Classes Destroyed 4 | . 2 2 Recycler 2 | . . 2 Watcher 2 | . 2 . Swarmer 3 | . . 3 Grunt 1 | . 1 . Best Kill Streak 3 | . 1 3 Combat Bots Only 3 | . 1 3 Max Kills in Single Turn 1 | . 1 1 Gunslinging . | . . . Exploded . | . . . Melee . | . . . Uniques/NPCs Destroyed . | . . . Combat | -11 -10 -10 -------- Run | Yrd Mat Min Hostile Shots Fired 57 | . 29 28 Missed 7 | . 4 3 Damage Taken 808 | . 335 473 Core 251 | . 124 127 Absorbed by Shields . | . . . Core Remaining (%) 100 | 100 . . Volleys Fired 24 | . 10 14 Largest 2 | . 2 2 Hottest 70 | . 70 60 Shots Fired 47 | . 20 27 Gun 47 | . 20 27 Cannon . | . . . Launcher . | . . . Special . | . . . Kinetic 23 | . 10 13 Thermal 24 | . 10 14 Explosive . | . . . Electromagnetic . | . . . Robot Hit Streak 10 | . 10 5 Robot Miss Streak 3 | . 1 3 Penetration Max . | . . . Secondary Targets . | . . . Shots Hit Robots 28 | . 15 13 Core Hits 15 | . 7 8 Critical Kills . | . . . Critical Parts Destroyed . | . . . Critical Strikes . | . . . Melee Attacks . | . . . Impact . | . . . Slashing . | . . . Piercing . | . . . Sneak Attacks . | . . . Combat Hostiles . | . . . Follow-up Attacks . | . . . Damage Inflicted 308 | . 178 130 Guns 308 | . 178 130 Cannons . | . . . Explosions . | . . . Melee . | . . . Ramming . | . . . Kinetic 127 | . 66 61 Thermal 181 | . 112 69 Explosive . | . . . Electromagnetic . | . . . Impact . | . . . Slashing . | . . . Piercing . | . . . Highest Corruption . | . . . Average Corruption . | . . . Corruption Purged . | . . . Corruption Blocked . | . . . Overload Shots . | . . . Overflow Damage . | . . . Projectiles . | . . . Explosions . | . . . Melee . | . . . Knockbacks . | . . . Impact . | . . . Kinetic . | . . . Secondary . | . . . Self-Inflicted Damage . | . . . Shots . | . . . Rammed . | . . . Targets Rammed . | . . . Kicked . | . . . Crushed . | . . . Highest Temperature 137 | . 137 40 Average Temperature 35 | . 50 17 Received Heat Transfer 207 | . 207 . Siege Activations . | . . . Robots Corrupted . | . . . Combat Hostiles . | . . . Parts Fried . | . . . Impact Corruptions . | . . . Robots Melted . | . . . Combat Hostiles . | . . . Parts Melted 1 | . 1 . Heat Transferred 483 | . 333 150 Parts Sabotaged . | . . . Parts Stolen . | . . . Parts Stripped . | . . . Power Chain Reactions . | . . . Alert | -11 -10 -10 ------- Run | Yrd Mat Min Peak Influence 94 | . 64 94 Initial 24 | . . 24 Average 50 | . 24 86 Maximum Alert Level . | . . . Low Security (%) 100 | 100 100 100 Level 1 . | . . . Level 2 . | . . . Level 3 . | . . . Level 4 . | . . . Level 5 . | . . . High Security . | . . . Max Security . | . . . Squads Dispatched . | . . . Investigation . | . . . Extermination . | . . . Reinforcement . | . . . Assault . | . . . Garrison . | . . . Intercept . | . . . Searches Triggered . | . . . Construction Impeded . | . . . Haulers Reinforced . | . . . Active Scanning Responses . | . . . Cargo Convoy Interrupts . | . . . Stealth | -11 -10 -10 --------- Run | Yrd Mat Min Distress Signals . | . . . Communications Jammed . | . . . Distress Signals . | . . . Times Spotted 13 | . 4 9 Peak Tracking Total 6 | . 2 6 Tactical Retreats 1 | . 1 . Traps | -11 -10 -10 ------- Run | Yrd Mat Min Traps Triggered 4 | . 4 . Indirectly . | . . . Trap Hack Attempts . | . . . Triggered . | . . . Disarmed . | . . . Reprogrammed . | . . . Reused . | . . . Traps Extracted . | . . . Installed . | . . . Triggered . | . . . Machines | -11 -10 -10 ---------- Run | Yrd Mat Min Machines Disabled . | . . . Max in Single Turn . | . . . Machines Repaired . | . . . Machines Dismantled . | . . . Machines Sabotaged . | . . . Overloaded Fab Kills . | . . . Hacking | -11 -10 -10 --------- Run | Yrd Mat Min Machines Accessed 1 | . 1 . Terminals 1 | . 1 . Fabricators . | . . . Repair Stations . | . . . Recycling Units . | . . . Scanalyzers . | . . . Garrison Access . | . . . Total Hacks 1 | . 1 . Successful 1 | . 1 . Failed . | . . . Catastrophic . | . . . Database Lockouts . | . . . Manual . | . . . Terminals 1 | . 1 . Fabricators . | . . . Repair Stations . | . . . Recycling Units . | . . . Scanalyzers . | . . . Garrison Access . | . . . Terminal Hacks 1 | . 1 . Record 1 | . 1 . Fabricator Hacks . | . . . Repair Station Hacks . | . . . Recycling Unit Hacks . | . . . Scanalyzer . | . . . Garrison Access Hacks . | . . . Unauthorized Hacks . | . . . Terminals . | . . . Fabricators . | . . . Repair Stations . | . . . Recycling Units . | . . . Scanalyzers . | . . . Garrison Access . | . . . Data Cores Recovered . | . . . Used . | . . . Hacking Detections . | . . . Full Trace Events . | . . . Feedback Events . | . . . Feedback Blocked . | . . . Robot Schematics Acquired . | . . . Robots Built . | . . . Authchips . | . . . Time . | . . . Total Robot Build Rating . | . . . Part Schematics Acquired . | . . . Parts Built . | . . . Authchips . | . . . Time . | . . . Total Part Build Rating . | . . . Parts Repaired . | . . . Time . | . . . Parts Recycled . | . . . Recycled Matter . | . . . Retrieved Matter . | . . . Retrieved Components . | . . . Parts Scanalyzed . | . . . Part Schematics Acquired . | . . . Parts Damaged . | . . . Bothacking | -11 -10 -10 ------------ Run | Yrd Mat Min Used RIF Installer . | . . . Robots Hacked . | . . . Non-combat . | . . . Combat . | . . . Robot Hacks Applied . | . . . Relay Couplers Released . | . . . Fabnet Peak Effective % . | . . . Robots Rewired . | . . . Allies Hacked . | . . . Hacks Repelled . | . . . Allies | -11 -10 -10 -------- Run | Yrd Mat Min Total Allies . | . . . Largest Group . | . . . Highest-Rated Group . | . . . Highest-Rated Ally . | . . . Total Orders . | . . . Ally Attacks . | . . . Total Damage . | . . . Kills . | . . . Allies Corrupted . | . . . Allies Melted . | . . . Intel | -11 -10 -10 ------- Run | Yrd Mat Min Robot Analysis Total . | . . . Derelict Logs Recovered . | . . . Drone Launches . | . . . Drone Recoveries . | . . . Exploration | -11 -10 -10 ------------- Run | Yrd Mat Min Turns Passed 618 | 66 265 287 Spaces Moved 368 | 37 131 200 Core 9 | 7 2 . Treads 188 | 30 129 29 Legs . | . . . Wheels 171 | . . 171 Hover . | . . . Flight . | . . . Fastest Speed 50 | 50 160 100 Average Speed 139 | 139 169 120 Slowest Speed 500 | 160 500 240 Overloaded Moves . | . . . Propulsion Burnouts . | . . . Robots Hopped . | . . . Cave-ins Triggered . | . . . Exploration Rate (%) 25 | 3 27 45 Regions Visited 2 Branch Regions 1 Pre-discovered Areas . | . . . Known Exits Taken . | . . . Unknown Exits Taken 2 | 1 1 . Scrap Searched . | . . . Spaces Dug . | . . . Terrain Destroyed . | . . . Melee . | . . . Projectile . | . . . AOE . | . . . Terrain Rammed . | . . . Walls Destroyed . | . . . Machines Disabled . | . . . Actions | -11 -10 -10 --------- Run | Yrd Mat Min Total 429 | 51 156 222 Wait . | . . . Move 366 | 36 130 200 Hop . | . . . Pick Up 20 | 8 9 3 Fast Attach . | . . . Attach 15 | 6 5 4 Detach . | . . . Swap 3 | 1 2 . Drop 1 | . . 1 Fire 24 | . 10 14 Melee . | . . . Ram . | . . . Kick . | . . . Crush . | . . . Escape Stasis . | . . . Rewire . | . . . Trap . | . . . Miscellaneous . | . . . Route ------- -11/Scrapyard -10/Materials (discovered 2 exits: [*Min x2]) -10/Mines History --------- Turn | Location | Event 16 | -11/Scrapyard | Discovered new exit (range 16) 67 | -11/Scrapyard | Entered Materials 292 | -10/Materials | Discovered new exit (range 5) 297 | -10/Materials | Discovered new exit (range 13) 316 | -10/Materials | Build established: Mutant 332 | -10/Materials | Entered Mines 339 | -10/Mines | Core integrity fell below 50% 579 | -10/Mines | Assembled infested the area 584 | -10/Mines | Assisted by a Guerilla fighting off Assembled 619 | -10/Mines | Core integrity fell below 20% 619 | -10/Mines | Destroyed by D-53 Grenadier with Mini Grenade Launcher Last Messages --------------- squad. 00584_ A derelict emerges from the shadows: "You need to get out of here! I've been tracking a group of Assembled to figure out where they're coming from, and they're closing on this area, come on!" 00605_ Lgt. Assault Rifle destroyed. 00605_ Core Extractor disabled. 00605_ DB-6DQ(h): "I'll hold them off! Go on ahead or try to find another way!" 00605_ HV Slug penetrates D-53 Grenadier. 00605_ D-53 Grenadier suffers critical hit (Destroy). 00605_ D-53 Grenadier knocked back. 00607_ K-01 Serf destroyed. 00607_ DB-6DQ(h) destroyed. 00613_ The unstable cave ceiling collapses. 00616_ Ion Engine destroyed. 00616_ Com. Wheel destroyed. 00616_ Sml. Laser destroyed. 00617_ as-89940 destroyed. 00618_ Sensor Array destroyed. 00618_ as-60312 destroyed. Map ----- +----------------------------------------------------+ | | | | | | | | | | | | | | | | | | | | | | | | | | | | | | | | | | | ??????????????????????????????????????????????? | | ??????????????????????????????????????????????? | | ??????????????????????????????????????????????? | | ???????????????????####???????????????????????? | | ??????????????????## ####???####????????????? | | ??????????????????# ##?## ##???????????? | | ???????????##????## ### ##??????????? | | ??????###### ### ## #??????????? | | ?????# a % @ # # ##???????? | | ?????# a ###?????? | | ?????# ##### # #?????? | | ???????????### # d ] ####???? | | ?????????????## ###### d % " #??? | | ??????????????# #?????## %% #??? | | ??????????????###???????## ## #??? | | ?????????????????????????## # # # #?? #??? | | ??????????????????????????# #*! ####??????? | | ??????????????????????????# # %# ##?????????? | | ??????????????????????????# ##=####??????????? | | ??????????????????????????# #????????????? | | ??????????????????????????##### #????????????? | | ??????????????????????????????# #????????????? | | ??????????????????????????????# #????????????? | | ??????????????????????????????# #####????????? | | ??????????????????????????????# #????????? | | ??????????????????????????????# #????????? | | ??????????????????????????????##### #????????? | | ??????????????????????????????????# #????????? | | ??????????????????????????????????# #????????? | | ??????????????????????????????????# #????????? | | ??????????????????????????????????# #????????? | | ??????????????????????????????????# #????????? | | ??????????????????????????????????# #????????? | +----------------------------------------------------+ Best States ------------- Heat Dissipation 25 Energy Generation 10 Energy Capacity 250 Matter Stores 300 Matter Capacity 300 Sight Range 16 Robot Scan Range 14 Terrain Scan Density 10 ECM Strength 1 Evasion (%) 40 Recoil Reduction 2 Item Schematics ----------------- None Robot Schematics ------------------ None Fabricated ------------ Nothing Alien Tech Used ----------------- None Achievements -------------- None Challenges ------------ None Game ------ Seed MolecularPhaseProcessor Manual? 0 Play Time 00:09:46 Cumulative 7.6 hours Start 2024.12.07 @ 17:27:33 End 2024.12.07 @ 18:21:49 Sessions 1 Manual Loads 0 Difficulty Rogue Special Mode None Game No. 45 Rogue 45 Adventurer 0 Explorer 0 Win Type - Total 0 Types 0/0/0/0/0/0/0/0/0 Lore% 8 Gallery% 14 Achievement% 16 Wizard Run 0 Options --------- Layout 0 ASCII 0 Keyboard 0 Movement Mouse Keybinds 0 Fullscreen 1 Font 18/SmallcapsGlow Map View 38x25 Zoom Use 99% Tactical HUD 1 Map Filters NONE Filters NONE Steam 1 RUN: c3357cfb-73b5-4bb8-ae5b-c4b5522c1788